Cogmind - Beta 16.1 @@@ ROGUE MODE // 2026.04.17 @ 20:49:25 Player: jazzy Result: Self-destructed Performance ------------- Evolutions (1) 500 Regions Visited (2) 400 Robots Destroyed (28) 140 Value Destroyed (769) 769 Prototype IDs (0) 0 Alien Tech Used (0) 0 Bonus (0) 0 TOTAL SCORE: 1809 Bonus ------- None Cogmind --------- Core Integrity 113/400 Matter 249/300 Energy 125/125 System Corruption 4% Temperature Cool (0) Movement Walking (120) Location -9/Materials Parts ------- > --- POWER (1) -------- Light Ion Engine > --- PROPULSION (4) --- Aluminum Leg Aluminum Leg > --- UTILITY (2) ------ (None) > --- WEAPON (2) ------- Improved Light Cannon Rocket Launcher > --- INVENTORY (5) ---- Large Storage Unit ECM Suite ECM Suite Particle Gun Peak State ------------ > --- POWER ------------ Ion Engine > --- PROPULSION ------- Aluminum Leg Aluminum Leg Aluminum Leg > --- UTILITY ---------- Large Storage Unit ECM Suite > --- WEAPON ----------- EM Pulse Gun Improved Light Cannon > --- INVENTORY -------- Ion Engine Heat Sink High-capacity Matter Pod ECM Suite Heavy Assault Rifle Improved Light Cannon Rocket Launcher [Rating: 10] Favorites ----------- Power Ion Engine Engine Ion Engine Propulsion Aluminum Leg Leg Aluminum Leg Utility ECM Suite Device ECM Suite Storage Medium Storage Unit Weapon Assault Rifle Energy Gun EM Pulse Gun Ballistic Gun Assault Rifle Ballistic Cannon Improved Light Cannon Launcher Grenade Launcher Build | -11 -10 -9 ------- Run | Yrd Mat Mat Slots Evolved 2 | . . 2 Power . | . . . Propulsion 2 | . . 2 Utility . | . . . Weapon . | . . . Parts Attached 25 | 6 8 11 Power 4 | 1 1 2 Engine 4 | 1 1 2 Core . | . . . Reactor . | . . . Propulsion 6 | 2 1 3 Treads . | . . . Leg 6 | 2 1 3 Wheel . | . . . Hover . | . . . Flight . | . . . Utility 6 | 1 3 2 Device 2 | . 1 1 Storage 4 | 1 2 1 Processor . | . . . Hackware . | . . . Protection . | . . . Artifact . | . . . Weapon 9 | 2 3 4 Energy Gun 1 | . 1 . Energy Cannon . | . . . Ballistic Gun 4 | 2 1 1 Ballistic Cannon 2 | . . 2 Launcher 2 | . 1 1 Special Weapon . | . . . Impact Weapon . | . . . Slashing Weapon . | . . . Piercing Weapon . | . . . Special Melee Weapon . | . . . Unidentified Prototypes . | . . . Parts Lost 9 | . . 9 Power 2 | . . 2 Propulsion 3 | . . 3 Utility 2 | . . 2 Weapon 2 | . . 2 Highest Loss Streak 5 | . . 5 To Critical Strikes 1 | . . 1 Average Backups 5 | 2 6 5 Power . | . 1 . Propulsion . | . . . Utility 2 | . 2 3 Weapon 1 | 1 1 1 Tool/Special . | . . . Unused Backups 6 | . 3 3 Power 1 | . 1 . Propulsion 1 | . 1 . Utility 2 | . 1 1 Weapon 2 | . . 2 Tool/Special . | . . . Average Slot Usage (%) 82 | . 98 66 Engine 11 | . 13 9 Leg 23 | . 27 19 Device 11 | . 13 8 Storage 12 | . 13 10 Energy Gun 2 | . 2 2 Ballistic Gun 13 | . 22 5 Ballistic Cannon 4 | . . 9 Launcher 2 | . 3 1 Peak Build Rating 10 | 6 7 10 Average Rating 7 | 3 6 7 On Entrance 4 | . 6 7 Avg Prop Armor Cover (%) 6 | . . 6 Naked Turns . | . . . Heaviest Build 34 | 11 31 34 Greatest Support 30 | 20 20 30 Greatest Overweight (x) 10 | . 1 10 Average Overweight (x) . | . . 1 Largest Inventory Capacity 15 | 8 15 15 Average Capacity 9 | 7 9 10 Most Carried 8 | 5 8 7 Average Carried 5 | 2 6 5 Final Capacity 15 | 8 15 5 Final Carried 7 | 2 7 4 Class Distribution -------------------- 91% | Mutant 8% | Scavenger-Mutant Dominant Class ---------------- Mutant | -10/Materials Mutant | -9/Materials Resources | -11 -10 -9 ----------- Run | Yrd Mat Mat Matter Collected 1094 | 255 401 438 Remotely . | . . . Salvage Created 771 | . 271 500 Parts 43 | . 21 22 Haulers Intercepted 1 | . . 1 Recyclers Shooed 2 | . 2 . Parts Field Recycled . | . . . Retrieved Matter . | . . . Parts Self-Destructed . | . . . Prevented . | . . . Parts Restored . | . . . Kills | -11 -10 -9 ------- Run | Yrd Mat Mat Combat Hostiles Destroyed 23 | . 9 14 Guns 11 | . 6 5 Cannons 9 | . . 9 AOE 3 | . 3 . Classes Destroyed 7 | . 3 4 Builder 2 | . . 2 Hauler 1 | . . 1 Watcher 2 | . 1 1 Swarmer 6 | . 3 3 Grunt 14 | . 6 8 Brawler 2 | . . 2 Sentry 1 | . . 1 Best Kill Streak 3 | . 3 3 Combat Bots Only 3 | . 3 3 Max Kills in Single Turn 2 | . 2 1 Gunslinging . | . . . Exploded 2 | . 2 . Melee . | . . . Uniques/NPCs Destroyed . | . . . Combat | -11 -10 -9 -------- Run | Yrd Mat Mat Hostile Shots Fired 182 | . 44 138 Missed 47 | . 13 34 Hits 135 | . 31 104 Melee 8 | . . 8 Projectile 127 | . 31 96 Critical Strikes 4 | . 2 2 Damage Taken 1678 | . 434 1244 Core 390 | . 103 287 Absorbed by Shields . | . . . Core Remaining (%) 79 | 100 58 . Volleys Fired 86 | . 26 60 Largest 2 | . 2 2 Hottest 66 | . 50 66 Shots Fired 141 | . 47 94 Gun 74 | . 41 33 Cannon 56 | . . 56 Launcher 11 | . 6 5 Special . | . . . Kinetic 130 | . 41 89 Thermal . | . . . Explosive 11 | . 6 5 Electromagnetic . | . . . Robot Hit Streak 11 | . 5 11 Robot Miss Streak 3 | . 3 2 Penetration Max . | . . . Secondary Targets . | . . . Shots Hit Robots 87 | . 25 62 Core Hits 48 | . 18 30 Critical Kills . | . . . Critical Parts Destroyed . | . . . Critical Strikes 3 | . . 3 Blast 3 | . . 3 Melee Attacks . | . . . Impact . | . . . Slashing . | . . . Piercing . | . . . Sneak Attacks . | . . . Combat Hostiles . | . . . Follow-up Attacks . | . . . Damage Inflicted 1776 | . 518 1258 Guns 640 | . 269 371 Cannons 780 | . . 780 Explosions 352 | . 249 103 Melee . | . . . Ramming 4 | . . 4 Kinetic 1420 | . 269 1151 Thermal . | . . . Explosive 352 | . 249 103 Electromagnetic . | . . . Impact . | . . . Slashing . | . . . Piercing . | . . . Highest Corruption 4 | . . 4 Average Corruption 3 | . . 3 Corruption Purged . | . . . Corruption Blocked . | . . . Effects 8 | . . 8 Message Errors 4 | . . 4 Matter Fused 2 | . . 2 Heat Flow Errors 1 | . . 1 Energy Discharges 1 | . . 1 Overload Shots . | . . . Overflow Damage 11 | . . 11 Projectiles 11 | . . 11 Explosions . | . . . Melee . | . . . Knockbacks 7 | . . 7 Impact . | . . . Kinetic 5 | . . 5 Secondary 2 | . . 2 Self-Inflicted Damage 76 | . 54 22 Shots 4 | . 3 1 Rammed . | . . . Targets Rammed 2 | . . 2 Kicked 2 | . . 2 Crushed . | . . . Highest Temperature 83 | . 25 83 Average Temperature 12 | . 10 13 Received Heat Transfer 510 | . 159 351 Siege Activations . | . . . Martial Activations . | . . . Shielding Activations . | . . . Robots Disrupted . | . . . Combat Hostiles . | . . . Robots Corrupted . | . . . Combat Hostiles . | . . . Parts Fried . | . . . Impact Corruptions . | . . . Robots Melted . | . . . Combat Hostiles . | . . . Parts Melted . | . . . Heat Transferred . | . . . Parts Sabotaged . | . . . Parts Stolen . | . . . Parts Stripped . | . . . Power Chain Reactions . | . . . Alert | -11 -10 -9 ------- Run | Yrd Mat Mat Maximum Alert Level . | . . . Low Security (%) 100 | 100 100 100 Level 1 . | . . . Level 2 . | . . . Level 3 . | . . . Level 4 . | . . . Level 5 . | . . . High Security . | . . . Max Security . | . . . Peak Influence 130 | . 76 130 Initial 14 | . . 14 Average 41 | . 25 59 Influence Increases 690 | . 266 424 Destroy 0b10 Robot/C 460 | . 180 280 Destroy 0b10 Robot/NC 25 | . 5 20 Destroy Leader 96 | . 32 64 Successful Hack 20 | . 16 4 Disable Machine 30 | . . 30 Destroy Structure 59 | . 33 26 Influence Decreases 585 | . 230 355 Entered New Map 22 | . . 22 Time Decay 416 | . 173 243 Lost Part 90 | . . 90 Purge Threat 57 | . 57 . Squads Dispatched 4 | . 3 1 Investigation 2 | . 2 . Extermination . | . . . Reinforcement 2 | . 1 1 Assault . | . . . Garrison . | . . . Intercept . | . . . Searches Triggered . | . . . Construction Impeded . | . . . Haulers Reinforced . | . . . Active Scanning Responses . | . . . Cargo Convoy Interrupts . | . . . Stealth | -11 -10 -9 --------- Run | Yrd Mat Mat Distress Signals 2 | . . 2 Communications Jammed . | . . . Distress Signals . | . . . Times Spotted 33 | . 16 17 Peak Tracking Total 4 | . 3 4 Tactical Retreats 3 | . 3 . ECM-based Alert Blocks 5 | . 5 . Traps | -11 -10 -9 ------- Run | Yrd Mat Mat Traps Triggered 1 | . 1 . Indirectly . | . . . Trap Hack Attempts . | . . . Triggered . | . . . Disarmed . | . . . Reprogrammed . | . . . Reused . | . . . Traps Extracted . | . . . Installed . | . . . Triggered . | . . . Machines | -11 -10 -9 ---------- Run | Yrd Mat Mat Machines Disabled 2 | . . 2 Max in Single Turn 1 | . . 1 Machines Repaired . | . . . Machines Dismantled . | . . . Machines Sabotaged . | . . . Overloaded Fab Kills . | . . . Hacking | -11 -10 -9 --------- Run | Yrd Mat Mat Machines Accessed 6 | . 5 1 Terminals 6 | . 5 1 Fabricators . | . . . Repair Stations . | . . . Recycling Units . | . . . Scanalyzers . | . . . Garrison Access . | . . . Total Hacks 15 | . 13 2 Successful 8 | . 7 1 Failed 7 | . 6 1 Catastrophic . | . . . Database Lockouts . | . . . Manual . | . . . Terminals 15 | . 13 2 Fabricators . | . . . Repair Stations . | . . . Recycling Units . | . . . Scanalyzers . | . . . Garrison Access . | . . . Terminal Hacks 8 | . 7 1 Record 2 | . 2 . Alert Level 1 | . 1 . Unreport Threat 2 | . 2 . Dispatch Records 1 | . . 1 Investigation Status 1 | . 1 . Recall Investigation 1 | . 1 . Fabricator Hacks . | . . . Repair Station Hacks . | . . . Recycling Unit Hacks . | . . . Scanalyzer . | . . . Garrison Access Hacks . | . . . Unauthorized Hacks . | . . . Terminals . | . . . Fabricators . | . . . Repair Stations . | . . . Recycling Units . | . . . Scanalyzers . | . . . Garrison Access . | . . . Data Cores Recovered . | . . . Used . | . . . Hacking Detections 5 | . 4 1 Full Trace Events . | . . . Feedback Events . | . . . Feedback Blocked . | . . . Robot Schematics Acquired . | . . . Robots Built . | . . . Authchips . | . . . Time . | . . . Total Robot Build Rating . | . . . Part Schematics Acquired . | . . . Parts Built . | . . . Authchips . | . . . Time . | . . . Total Part Build Rating . | . . . Part Studies Acquired . | . . . Parts Repaired . | . . . Time . | . . . Parts Recycled . | . . . Recycled Matter . | . . . Retrieved Matter . | . . . Retrieved Components . | . . . Parts Scanalyzed . | . . . Part Schematics Acquired . | . . . Parts Damaged . | . . . Bothacking | -11 -10 -9 ------------ Run | Yrd Mat Mat Used RIF Installer . | . . . Robots Hacked . | . . . Non-combat . | . . . Combat . | . . . Robot Hacks Applied . | . . . Relay Couplers Released . | . . . Fabnet Peak Effective % . | . . . Robots Rewired . | . . . Allies Hacked . | . . . Hacks Repelled . | . . . Allies | -11 -10 -9 -------- Run | Yrd Mat Mat Total Allies . | . . . Largest Group . | . . . Highest-Rated Group . | . . . Highest-Rated Ally . | . . . Total Orders . | . . . Ally Attacks . | . . . Total Damage . | . . . Kills . | . . . Allies Corrupted . | . . . Allies Melted . | . . . Intel | -11 -10 -9 ------- Run | Yrd Mat Mat Active Infowar (turns) 854 | . 661 193 ECM 854 | . 661 193 Robot Analysis Total . | . . . Derelict Logs Recovered . | . . . Drone Launches . | . . . Drone Recoveries . | . . . Exploration | -11 -10 -9 ------------- Run | Yrd Mat Mat Turns Passed 1438 | 69 668 701 Spaces Moved 694 | 55 383 256 Core 92 | 14 . 78 Treads . | . . . Legs 602 | 41 383 178 Wheels . | . . . Hover . | . . . Flight . | . . . Fastest Speed 50 | 50 120 120 Average Speed 155 | 102 141 188 Slowest Speed 550 | 120 190 550 Overloaded Moves . | . . . Propulsion Burnouts . | . . . Robots Hopped . | . . . Potential Cave-ins . | . . . Cave-ins Triggered . | . . . Exploration Rate (%) 28 | 4 65 17 Regions Visited 2 Branch Regions . Pre-discovered Areas . | . . . Known Exits Taken . | . . . Unknown Exits Taken 2 | 1 1 . Scrap Searched . | . . . Spaces Dug . | . . . Terrain Destroyed 103 | . 47 56 Melee . | . . . Projectile 2 | . . 2 AOE 101 | . 47 54 Terrain Rammed . | . . . Walls Destroyed . | . . . Machines Disabled . | . . . Actions | -11 -10 -9 --------- Run | Yrd Mat Mat Total 922 | 68 473 381 Wait 59 | . 19 40 Move 692 | 54 382 256 Hop . | . . . Pick Up 32 | 8 18 6 Fast Attach 4 | . 2 2 Attach 25 | 6 10 9 Detach 8 | . 6 2 Swap . | . . . Drop 14 | . 10 4 Fire 86 | . 26 60 Melee . | . . . Ram . | . . . Kick 2 | . . 2 Crush . | . . . Escape Stasis . | . . . Rewire . | . . . Trap . | . . . Miscellaneous . | . . . Route ------- -11/Scrapyard -10/Materials (discovered 3 exits: *Mat x3) -9/Materials History --------- Turn | Location | Event 4 | -11/Scrapyard | Discovered new exit (range 16) 70 | -11/Scrapyard | Entered Materials 71 | -10/Materials | Met a group of wandering Federalists 236 | -10/Materials | Discovered new exit (range 13) 311 | -10/Materials | Build established: Mutant 521 | -10/Materials | Discovered new exit (range 16) 669 | -10/Materials | Discovered new exit (range 15) 738 | -10/Materials | Entered another Materials area 738 | -9/Materials | Evolved 2 slots: Propulsion x2 1148 | -9/Materials | Lost 5 parts (3n2w) 1258 | -9/Materials | Core integrity fell below 50% 1439 | -9/Materials | Self-destructed Last Messages --------------- 01409_ Hcp. Matter Pod destroyed. 01409_ Electrolysis Chamber disabled. 01409_ U-05 Engineer lays Concrete. 01409_ K-01 Serf collects debris. 01410_ %DUTKXQVGZDKU6HB3A,N7V0XAVGO KO 01410_ U-05 Engineer lays Concrete. 01412_ U-05 Engineer builds a Door. 01413_ U-05 Engineer lays Concrete. 01414_ U-05 Engineer destroyed. 01415_ U-05 Engineer lays Concrete. 01416_ U-05 Engineer builds a Wall. 01418_ U-05 Engineer lays Concrete. 01419_ U-05 Engineer builds a Wall. 01420_ U-05 Engineer lays Concrete. 01421_ U-05 Engineer builds a Wall. 01430_ K-01 Serf collects debris. 01430_ U-05 Engineer builds a Wall. 01436_ K-01 Serf collects debris. 01437_ Y-45 Defender destroyed. 01439_ K-01 Serf collects debris. Map ----- +----------------------------------------------------+ | ?????????????????????????????????????????????????? | | ?????????????????????????????????????????????????? | | ?????????????????????????????????????????????????? | | ?????????????????????????????????????????????????? | | ?????????????????????????????????????????????????? | | ?????????????????????????????????????????????????? | | ?????????????????????????????????????????????????? | | ?????????????????????????????????????????????????? | | ???????????????????????? ????????????????????????? | | ???????????????????????? ????????????????????????? | | ???????????????????????? ????????????????????????? | | ???????????????????????? ????????????????????????? | | ?????????????????????### ????????????????????????? | | ???????????????????### ###?????????????????????? | | ??????????????????? ?????????????????????? | | ???????????????????# ?????????????????????? | | ???????????????????? #= #?????????????????????? | | ????????????????????# # ?????????????????????? | | ????????????????????# # #?????????????????????? | | ????????????????????# # #?????????????????????? | | ????????????????????# #% #?????????????????????? | | ?????????????????????#%#* #??########+#??? ?????? | | ????????????????????####+###### ?????? | | ????????????????????# *!k + ??????? | | ????????????????????# % % # ] """ ???????? | | ????????????????????# @ %# """ #????????? | | ????????????????????# " " # """ #????????? | | ????????????????????# """ """ # #????????? | | ????????????????????# """ "" + #????????? | | ????????????????????# % # #???? | | ????#####???????????# # ###+###### #???? | | ????# #??????????########+### # #?????? | | ????# #??????????# + #?????? | | ##### #######????# # #?????? | | ##] ##!!!!##??## """ #??????????????? | | ## #! !#??#" """ #####??????????????? | | ## # #??#T """ "#????????????????? | | ## # ####" T"#????????????????? | | ###+## ## % ""#????????????????? | | #%% ][! ###????????????????? | | [+! ][! #??????????????????? | | %#% #### ][! %#??????????????????? | | %### #??# #??????????????????? | | #?# #??# % #??????????????????? | | #?# #??########## #??????????????????? | | ##"### #???????????# #??????????????????? | | # #???????????#% #??????????????????? | | # #######???????????# #??????????????????? | | # #?????????????????# #??????????????????? | | # #?????????????????# #??????????????????? | +----------------------------------------------------+ Best States ------------- Heat Dissipation 38 Energy Generation 10 Energy Capacity 250 Matter Stores 500 Matter Capacity 500 Sight Range 16 Terrain Scan Density 10 ECM Strength 1 Evasion (%) 55 Item Schematics ----------------- None Robot Schematics ------------------ None Fabricated ------------ Nothing Repaired ---------- Nothing Studied --------- None Alien Tech Used ----------------- None Achievements -------------- None Challenges ------------ None Game ------ Seed SkeletonTechExtractor Manual? 0 Play Time 00:25:22 Cumulative 5.5 hours Start 2026.04.17 @ 20:24:17 End 2026.04.17 @ 20:49:25 Sessions 1 Manual Loads 0 Difficulty Rogue Special Mode None Game No. 7 Rogue 4 Adventurer 3 Explorer 0 Win Type - Total 0 Types 0/0/0/0/0/0/0/0/0/0 Lore% 1 Gallery% 9 Achievement% 9 Wizard Run 0 Options --------- Layout 1 ASCII 0 Keyboard 0 Movement Mouse Keybinds 0 Fullscreen 1 Font 24/Smallcaps Map View 50x35 Zoom Use 0% Tactical HUD 1 Map Filters NONE Filters NONE Steam 1 RUN: 35f20991-c3f4-4fbc-ae58-373278cdb483